bitfinex-derivatives/quotes_BTCF0:USTF0_20250904
["timestamp","ask_amount","ask_price","bid_price","bid_amount"]
[1756969054376,3.74437958,110470.0,110460.0,0.00723]
[1756969054687,3.74423888,110470.0,110450.0,0.0002]
[1756969054981,1.65634082,110460.0,110450.0,0.0001]
[1756969055282,2.33161665,110460.0,110440.0,0.0002]
[1756969055480,0.4093538,110450.0,110440.0,0.0001]
[1756969055678,0.4093538,110450.0,110430.0,0.0383]
[1756969055679,1.07462963,110450.0,110430.0,0.0383]
[1756969055880,0.3608,110440.0,110430.0,0.0382]
[1756969056082,1.00607583,110440.0,110430.0,0.0381]
[1756969056277,1.00607583,110440.0,110430.0,0.04712337]
[1756969057678,1.00607583,110440.0,110430.0,0.04812337]
[1756969058476,1.83919583,110440.0,110430.0,0.04712337]
[1756969058681,1.83919583,110440.0,110430.0,0.04812337]
[1756969060686,1.00607583,110440.0,110430.0,0.04812337]
[1756969060888,1.83883583,110440.0,110430.0,0.04812337]
[1756969062290,2.21551509,110440.0,110430.0,0.04812337]
[1756969064084,1.38295509,110440.0,110430.0,0.04812337]
[1756969064292,2.21539509,110440.0,110430.0,0.04812337]
[1756969066391,1.00607583,110440.0,110430.0,0.04812337]
[1756969066592,2.21503509,110440.0,110430.0,0.04812337]
[1756969066791,1.00607583,110440.0,110430.0,0.67500263]
[1756969066986,0.34527583,110440.0,110430.0,2.50644041]
[1756969067182,0.3,110440.0,110430.0,3.40940991]
[1756969068287,0.2764706,110440.0,110430.0,3.40940991]
[1756969068784,0.10152427,110440.0,110430.0,3.40940991]
[1756969068981,0.29,110440.0,110430.0,3.40940991]
[1756969069192,0.29,110440.0,110430.0,2.57696991]
[1756969069385,0.29,110440.0,110430.0,3.40960991]
[1756969071284,0.29,110440.0,110430.0,3.40936991]
[1756969071490,0.29,110440.0,110430.0,2.57676991]
[1756969071688,0.29,110440.0,110430.0,3.40920991]
[1756969073189,0.29,110440.0,110430.0,2.57676991]
[1756969073388,0.29,110440.0,110430.0,3.40900991]
[1756969073594,0.29,110440.0,110430.0,2.57676991]
[1756969073891,0.29,110440.0,110430.0,3.40896991]
[1756969077595,0.29,110440.0,110430.0,2.57676991]
[1756969077896,0.29,110440.0,110430.0,3.40860991]
[1756969079201,0.29,110440.0,110430.0,2.32676991]
[1756969079395,0.29,110440.0,110430.0,3.15856991]
[1756969079896,0.29,110440.0,110430.0,2.32676991]
[1756969080082,0.29,110440.0,110430.0,1.56052337]
[1756969080290,0.29,110440.0,110430.0,2.23624041]
[1756969080487,0.29,110440.0,110430.0,3.06804041]
[1756969080895,0.29,110440.0,110430.0,3.33324041]
[1756969081398,0.29,110440.0,110430.0,0.67392337]
[1756969081690,0.90112,110440.0,110430.0,0.70000263]
[1756969081893,1.21112,110440.0,110430.0,1.53180263]
[1756969082090,0.90112,110440.0,110430.0,0.70000263]
[1756969082284,0.90112,110440.0,110430.0,1.53180263]
[1756969082488,1.27112,110440.0,110430.0,1.53180263]
[1756969084103,1.27092,110440.0,110430.0,1.53160263]
[1756969084397,0.90092,110440.0,110430.0,1.53160263]
[1756969084996,1.22092,110440.0,110430.0,1.53160263]
[1756969085897,1.22092,110440.0,110430.0,1.15472337]
[1756969086098,1.22092,110440.0,110430.0,1.53160263]
[1756969086898,1.22092,110440.0,110430.0,1.26640263]
[1756969088204,1.22092,110440.0,110430.0,0.88952337]
[1756969088395,1.22092,110440.0,110430.0,1.26640263]
[1756969089301,1.24649774,110440.0,110430.0,1.26640263]
[1756969090194,0.92649774,110440.0,110430.0,1.26640263]
[1756969090499,1.23650117,110440.0,110430.0,1.26640263]
[1756969090801,0.9265012,110440.0,110430.0,1.26640263]
[1756969091005,1.2565012,110440.0,110430.0,1.26640263]
[1756969092504,0.9265012,110440.0,110430.0,1.26640263]
[1756969093303,0.9265012,110440.0,110430.0,1.26636263]
[1756969093696,1.2765012,110440.0,110430.0,1.26636263]
[1756969094305,0.9265012,110440.0,110430.0,1.26636263]
[1756969094499,1.2465012,110440.0,110430.0,1.26636263]
[1756969094896,1.2365012,110440.0,110430.0,1.26636263]
[1756969095802,1.3065012,110440.0,110430.0,1.26636263]
[1756969098804,0.9265012,110440.0,110430.0,1.26636263]
[1756969099006,1.2365012,110440.0,110430.0,1.26636263]
[1756969099200,0.9263012,110440.0,110430.0,1.26616263]
[1756969099400,1.2563012,110440.0,110430.0,1.26616263]
[1756969100105,0.9263012,110440.0,110430.0,1.26616263]
[1756969100400,1.2563012,110440.0,110430.0,1.26616263]
[1756969100606,0.9263012,110440.0,110430.0,1.26616263]
[1756969100905,1.2963012,110440.0,110430.0,1.26616263]
[1756969101100,1.2363012,110440.0,110430.0,1.26616263]
[1756969101305,0.9263012,110440.0,110430.0,1.26616263]
[1756969102006,1.2663012,110440.0,110430.0,1.26616263]
[1756969104007,0.9263012,110440.0,110430.0,1.26616263]
[1756969104394,1.2563012,110440.0,110430.0,0.43440263]
[1756969104802,1.2563012,110440.0,110430.0,1.26608263]
[1756969105394,1.2563012,110440.0,110430.0,0.88920337]
[1756969105600,1.2563012,110440.0,110430.0,1.26620047]
[1756969107707,1.2563012,110440.0,110430.0,1.26820047]
[1756969107900,1.2663012,110440.0,110430.0,1.26820047]
[1756969108097,1.2663012,110440.0,110430.0,0.89116337]
[1756969108300,1.2663012,110440.0,110430.0,1.26816047]
[1756969109205,0.9263012,110440.0,110430.0,1.26816047]
[1756969109403,1.2463012,110440.0,110430.0,1.26816047]
[1756969110005,1.2463012,110440.0,110430.0,0.89116337]
[1756969110206,1.2463012,110440.0,110430.0,1.26816047]
[1756969110412,0.9263012,110440.0,110430.0,1.26816047]
[1756969110808,1.2463012,110440.0,110430.0,1.26816047]
[1756969115013,1.2463012,110440.0,110430.0,0.89116337]
[1756969115212,1.2463012,110440.0,110430.0,1.26816047]
[1756969115516,1.2763012,110440.0,110430.0,0.05952337]
[1756969115715,1.2663012,110440.0,110430.0,1.26812047]
[1756969115914,1.2763012,110440.0,110430.0,1.26812047]
[1756969116413,0.9263012,110440.0,110430.0,1.26812047]
[1756969116814,1.2463012,110440.0,110430.0,1.26812047]
[1756969117007,1.2763012,110440.0,110430.0,1.26812047]
[1756969117609,0.9263012,110440.0,110430.0,1.26812047]
[1756969118010,0.6763012,110440.0,110430.0,1.26812047]
[1756969118814,1.0563012,110440.0,110430.0,1.26812047]
[1756969120615,0.6763012,110440.0,110430.0,1.26812047]
[1756969120805,1.0463012,110440.0,110430.0,1.26812047]
[1756969121208,0.6763012,110440.0,110430.0,1.26812047]
[1756969121714,1.0463012,110440.0,110430.0,1.26812047]
[1756969121918,0.9863012,110440.0,110430.0,1.26812047]
[1756969122514,0.6763012,110440.0,110430.0,1.26812047]
[1756969122909,0.3151812,110440.0,110430.0,2.38911177]
[1756969123114,0.3151812,110440.0,110430.0,3.09991177]
[1756969127707,0.3161412,110440.0,110430.0,0.86732047]
[1756969128010,0.6769412,110440.0,110430.0,1.33796047]
[1756969128211,1.0069412,110440.0,110430.0,1.33796047]
[1756969129222,1.0065412,110440.0,110430.0,1.33796047]
[1756969130422,0.6765412,110440.0,110430.0,1.33796047]
[1756969130823,1.0165412,110440.0,110430.0,1.33796047]
[1756969131013,0.6765412,110440.0,110430.0,1.33796047]
[1756969131212,1.0465412,110440.0,110430.0,1.33796047]
[1756969131920,0.6857412,110440.0,110430.0,1.33796047]
[1756969132120,1.0465412,110440.0,110430.0,1.33796047]
[1756969132637,1.0465412,110440.0,110430.0,0.50652047]
[1756969132821,1.0465412,110440.0,110430.0,1.33788047]
[1756969133423,1.0465412,110440.0,110430.0,0.12952337]
[1756969133609,0.6765412,110440.0,110430.0,1.33788047]
[1756969134014,1.0265412,110440.0,110430.0,1.33788047]
[1756969134214,0.6765412,110440.0,110430.0,1.33788047]
[1756969134418,0.9865412,110440.0,110430.0,1.33788047]
[1756969134819,0.6765412,110440.0,110430.0,1.33788047]
[1756969135021,1.0065412,110440.0,110430.0,1.33788047]
[1756969135422,1.00663018,110440.0,110430.0,1.33788047]
[1756969135922,1.00663018,110440.0,110430.0,0.50652047]
[1756969136119,1.00663018,110440.0,110430.0,1.33784047]
[1756969137019,0.67663018,110440.0,110430.0,1.33784047]
[1756969137223,1.00663018,110440.0,110430.0,1.33784047]
[1756969137725,0.98663018,110440.0,110430.0,1.33784047]
[1756969138027,0.67663018,110440.0,110430.0,1.33784047]
[1756969138324,1.05663018,110440.0,110430.0,1.33784047]
[1756969140226,1.00663018,110440.0,110430.0,1.33784047]
[1756969140822,0.31583018,110440.0,110430.0,1.33784047]
[1756969141520,0.67663018,110440.0,110430.0,1.33784047]
[1756969141720,0.66583018,110440.0,110430.0,1.33784047]
[1756969141925,1.02663018,110440.0,110430.0,1.33784047]
[1756969142426,0.66583018,110440.0,110430.0,1.33784047]
[1756969142621,1.02663018,110440.0,110430.0,1.33784047]
[1756969144022,1.02663018,110440.0,110430.0,1.33764047]
[1756969144226,0.31583018,110440.0,110430.0,1.33764047]
[1756969144428,0.67663018,110440.0,110430.0,1.33764047]
[1756969145632,1.02663018,110440.0,110430.0,1.33764047]
[1756969145832,0.67663018,110440.0,110430.0,1.33764047]
[1756969146226,0.31487018,110440.0,110430.0,1.71463757]
[1756969147631,0.31487018,110440.0,110430.0,1.33764047]
[1756969148231,0.3148706,110440.0,110430.0,1.33764047]
[1756969153144,0.3148706,110440.0,110430.0,1.71463757]
[1756969153446,0.3148706,110440.0,110430.0,1.93463757]
[1756969153945,0.3148706,110440.0,110430.0,1.18064337]
[1756969154246,0.3148706,110440.0,110430.0,1.55764047]
[1756969157840,0.3148706,110440.0,110430.0,1.5763086]
[1756969159048,0.3146706,110440.0,110430.0,1.5763086]
[1756969159739,0.3159506,110440.0,110430.0,0.7449886]
[1756969159939,0.3159506,110440.0,110430.0,1.5759086]
[1756969160249,0.3159506,110440.0,110430.0,0.7449886]
[1756969160447,0.3159506,110440.0,110430.0,1.5759086]
[1756969161247,0.3159506,110440.0,110430.0,1.55724047]
[1756969161447,0.3159506,110440.0,110430.0,1.57590093]
[1756969161848,0.3146706,110440.0,110430.0,1.57590093]
[1756969162650,0.3146706,110440.0,110430.0,0.74498093]
[1756969162951,0.3146706,110440.0,110430.0,1.57586093]
[1756969167559,0.3146706,110440.0,110430.0,1.57581088]
[1756969168552,0.3146706,110440.0,110430.0,0.74493088]
[1756969168854,0.3146706,110440.0,110430.0,1.57569088]
[1756969174056,0.3144706,110440.0,110430.0,1.19854383]
[1756969174258,0.3144706,110440.0,110430.0,2.70633203]
[1756969180562,0.3144706,110440.0,110430.0,2.53605203]
[1756969181163,0.3144706,110440.0,110430.0,1.70557203]
[1756969181356,0.6344706,110440.0,110430.0,1.40521088]
[1756969181657,0.6460706,110440.0,110430.0,1.40521088]
[1756969181862,0.6768706,110440.0,110430.0,1.40521088]
[1756969182053,0.9968706,110440.0,110430.0,1.40521088]
[1756969182249,1.0068706,110440.0,110430.0,1.40521088]
[1756969182456,0.6768706,110440.0,110430.0,0.57473088]
[1756969182657,0.6768706,110440.0,110430.0,1.40521088]
[1756969182860,1.0168706,110440.0,110430.0,1.40521088]
[1756969183063,1.0168706,110440.0,110430.0,0.57473088]
[1756969183257,1.0168706,110440.0,110430.0,1.40517088]
[1756969184059,0.6768706,110440.0,110430.0,1.40517088]
[1756969184259,0.3160706,110440.0,110430.0,1.40517088]
[1756969184459,0.6768706,110440.0,110430.0,1.40517088]
[1756969184662,0.6768706,110440.0,110430.0,1.40513088]
[1756969188963,0.6768706,110440.0,110430.0,1.40493088]
[1756969190266,0.6768706,110440.0,110430.0,1.40481088]
[1756969190463,1.0468706,110440.0,110430.0,0.57453088]
[1756969190669,0.3160706,110440.0,110430.0,1.38615042]
[1756969190966,0.6768706,110440.0,110430.0,1.38615042]
[1756969192469,0.6768706,110440.0,110430.0,0.55587042]
[1756969192664,0.6768706,110440.0,110430.0,1.38615042]
[1756969194573,0.6768706,110440.0,110430.0,0.55587042]
[1756969194872,0.6768706,110440.0,110430.0,1.38611042]
[1756969195174,0.3160706,110440.0,110430.0,1.38611042]
[1756969195366,0.6768706,110440.0,110430.0,1.38611042]
[1756969196975,0.3144706,110440.0,110430.0,1.38611042]
[1756969197275,0.6752706,110440.0,110430.0,1.38611042]
[1756969197474,0.6752706,110440.0,110430.0,1.00916337]
[1756969197775,0.6752706,110440.0,110430.0,1.38611042]
[1756969198474,0.3144706,110440.0,110430.0,1.38611042]
[1756969198773,0.6752706,110440.0,110430.0,1.38611042]
[1756969199080,0.3144706,110440.0,110430.0,1.38611042]
[1756969199276,0.6752706,110440.0,110430.0,1.38611042]
[1756969199975,0.6752706,110440.0,110430.0,0.55587042]
[1756969200267,0.6771906,110440.0,110430.0,0.55587042]
[1756969200467,1.0171906,110440.0,110430.0,0.55587042]
[1756969200673,1.0171906,110440.0,110430.0,1.38591042]
[1756969200977,1.65413765,110440.0,110430.0,0.17892337]
[1756969201174,1.2771906,110440.0,110430.0,0.17892337]
[1756969201477,1.65413765,110440.0,110430.0,0.17892337]
[1756969201677,1.65413765,110440.0,110430.0,0.55587042]
[1756969201972,1.65413765,110440.0,110430.0,0.17892337]
[1756969202972,1.65413765,110440.0,110430.0,1.00892337]
[1756969203469,1.65413765,110440.0,110430.0,0.17892337]
[1756969203967,1.65413765,110440.0,110430.0,1.00888337]
[1756969204169,1.30393765,110440.0,110430.0,1.00868337]
[1756969204373,1.63393765,110440.0,110430.0,1.00868337]
[1756969205276,1.63393765,110440.0,110430.0,0.17872337]
[1756969205575,1.63393765,110440.0,110430.0,1.00864337]
[1756969206272,1.63393765,110440.0,110430.0,0.17872337]
[1756969206477,1.63393765,110440.0,110430.0,1.00864337]
[1756969207380,1.63393765,110440.0,110430.0,0.17872337]
[1756969207880,1.63393765,110440.0,110430.0,1.00864337]
[1756969208172,1.2569906,110440.0,110430.0,1.00864337]
[1756969208374,1.63393765,110440.0,110430.0,1.00864337]
[1756969208674,1.63393765,110440.0,110430.0,0.17872337]
[1756969208871,1.38393765,110440.0,110430.0,0.87864337]
[1756969209077,0.6769906,110440.0,110430.0,0.87864337]
[1756969209277,0.3142706,110440.0,110430.0,1.63253747]
[1756969209469,0.27785768,110440.0,110430.0,2.99723157]
[1756969209671,0.10645734,110440.0,110430.0,3.13775847]
[1756969209870,0.10645734,110440.0,110430.0,3.04723157]
[1756969209871,0.28645734,110440.0,110430.0,3.04723157]
[1756969210278,0.28,110440.0,110430.0,2.21731157]
[1756969210475,0.28,110440.0,110430.0,0.83647042]
[1756969210679,0.28,110440.0,110430.0,1.66635042]
[1756969211071,0.28,110440.0,110430.0,2.79819157]
[1756969211667,0.28,110440.0,110430.0,0.83747042]
[1756969211876,0.28224,110440.0,110430.0,1.66731042]
[1756969212176,0.28,110440.0,110430.0,1.66731042]
[1756969212576,0.28224,110440.0,110430.0,1.66727042]
[1756969213082,0.64224,110440.0,110430.0,1.30647042]
[1756969213270,0.28224,110440.0,110430.0,1.30647042]
[1756969213471,0.28224,110440.0,110430.0,0.92952337]
[1756969213672,0.66224,110440.0,110430.0,1.30547042]
[1756969214082,0.28224,110440.0,110430.0,1.30547042]
[1756969214282,0.59224,110440.0,110430.0,1.30547042]
[1756969214473,0.28224,110440.0,110430.0,0.47567042]
[1756969214669,0.64304,110440.0,110430.0,0.47567042]
[1756969214976,0.64304,110440.0,110430.0,0.92848337]
[1756969214977,1.61998705,110440.0,110430.0,0.92848337]
[1756969215277,1.59998705,110440.0,110430.0,0.92748337]
[1756969215768,1.61998705,110440.0,110430.0,0.92748337]
[1756969218183,1.61998705,110440.0,110430.0,0.92744337]
[1756969218584,1.61998705,110440.0,110430.0,0.09772337]
[1756969218786,1.61998705,110440.0,110430.0,0.92744337]
[1756969219185,1.61978705,110440.0,110430.0,0.92744337]
[1756969220301,1.61978705,110440.0,110430.0,0.09772337]
[1756969220484,1.61978705,110440.0,110430.0,0.87744337]
[1756969221787,1.2683087,110440.0,110430.0,0.87744337]
[1756969222179,1.64525575,110440.0,110430.0,0.87744337]
[1756969227583,1.64536536,110440.0,110430.0,0.87744337]
[1756969229591,0.9183087,110440.0,110430.0,1.25450003]
[1756969229795,0.6660687,110440.0,110430.0,1.50450003]
[1756969229986,0.3052687,110440.0,110430.0,1.86530003]
[1756969230185,0.3052687,110440.0,110430.0,2.24235669]
[1756969230395,0.3052687,110440.0,110430.0,1.41263669]
[1756969230593,0.3052687,110440.0,110430.0,1.50438003]
[1756969231194,0.3052687,110440.0,110430.0,1.86518003]
[1756969231397,0.3052687,110440.0,110430.0,2.22518003]
[1756969231987,0.3052687,110440.0,110430.0,1.86518003]
[1756969232182,0.3052687,110440.0,110430.0,2.56223669]
[1756969232391,0.3052687,110440.0,110430.0,3.31635001]
[1756969233101,0.2798,110440.0,110430.0,3.31635001]
[1756969233293,0.30502897,110440.0,110430.0,3.31635001]
[1756969234200,0.30482897,110440.0,110430.0,3.31615001]
[1756969238195,0.2796,110440.0,110430.0,3.31615001]
[1756969238588,0.2796,110440.0,110430.0,3.40667691]
[1756969238792,0.2796,110440.0,110430.0,3.31615001]
[1756969239501,0.2796,110440.0,110430.0,3.31599001]
[1756969240302,0.2796,110440.0,110430.0,2.48655001]
[1756969240602,0.2796,110440.0,110430.0,3.31595001]
[1756969241098,0.2796,110440.0,110430.0,2.48655001]
[1756969241295,0.2796,110440.0,110430.0,3.31595001]
[1756969244606,0.2796,110440.0,110430.0,3.31587001]
[1756969245210,0.2796,110440.0,110430.0,2.48655001]
[1756969245402,0.2796,110440.0,110430.0,3.31587001]
[1756969245804,0.2796,110440.0,110430.0,3.33408804]
[1756969246612,0.2796,110440.0,110430.0,2.50476804]
[1756969246815,0.2796,110440.0,110430.0,3.33404804]
[1756969248230,0.2796,110440.0,110430.0,2.50476804]
[1756969248414,0.2796,110440.0,110430.0,3.33404804]
[1756969248612,0.2796,110440.0,110430.0,0.9965414]
[1756969248811,0.28216,110440.0,110430.0,3.33400804]
[1756969249116,0.2794,110440.0,110430.0,2.50456804]
[1756969249314,0.2794,110440.0,110430.0,3.33380804]
[1756969250109,0.2794,110440.0,110430.0,0.83339806]
[1756969250110,0.53228,110440.0,110430.0,0.83339806]
[1756969250312,0.84228,110440.0,110430.0,0.83339806]
[1756969250515,0.53228,110440.0,110430.0,0.83339806]
[1756969250719,0.53228,110440.0,110430.0,1.66259806]
[1756969251009,0.90933666,110440.0,110430.0,0.47259806]
[1756969251214,1.26454697,110440.0,110430.0,0.9247414]
[1756969251415,1.26454697,110440.0,110430.0,1.30179806]
[1756969251416,0.93454697,110440.0,110430.0,1.30179806]
[1756969251924,0.93749031,110440.0,110430.0,1.30179806]
[1756969252118,0.55749031,110440.0,110430.0,1.30179806]
[1756969253724,0.87749031,110440.0,110430.0,1.30179806]
[1756969253923,0.91829031,110440.0,110430.0,1.30179806]
[1756969255229,1.23829031,110440.0,110430.0,1.30179806]
[1756969255421,1.26829031,110440.0,110430.0,1.30179806]
[1756969255724,0.91829031,110440.0,110430.0,0.47259806]
[1756969256025,1.29534697,110440.0,110430.0,0.9247014]
[1756969256419,1.29534697,110440.0,110430.0,0.8947014]
[1756969257326,1.67534697,110440.0,110430.0,0.8947014]
[1756969257819,0.96829031,110440.0,110430.0,1.27175806]
[1756969258620,1.29829031,110440.0,110430.0,1.27175806]
[1756969259325,1.04829031,110440.0,110430.0,1.27175806]
[1756969260128,1.67534697,110440.0,110430.0,0.8946614]
[1756969261028,1.29829031,110440.0,110430.0,0.8946614]
[1756969261227,1.67534697,110440.0,110430.0,0.8946614]
[1756969261522,0.91829031,110440.0,110430.0,0.8946614]
[1756969261723,0.30461031,110440.0,110430.0,1.27171806]
[1756969262028,0.30461031,110440.0,110430.0,3.12368804]
[1756969262333,0.30461031,110440.0,110430.0,3.37368804]
[1756969262519,0.2794,110440.0,110430.0,3.37368804]
[1756969262720,0.2794,110440.0,110430.0,1.8654614]
[1756969263024,0.2794,110440.0,110430.0,3.37368804]
[1756969264431,0.28228,110440.0,110430.0,1.63247806]
[1756969265425,0.2794,110440.0,110430.0,2.00953472]
[1756969265730,0.2794,110440.0,110430.0,1.2554214]
[1756969265929,0.2794,110440.0,110430.0,2.00953472]
[1756969266334,0.2794,110440.0,110430.0,1.63247806]
[1756969266728,0.2794,110440.0,110430.0,0.80339806]
[1756969266933,0.28228,110440.0,110430.0,1.27167806]
[1756969267134,0.30756458,110440.0,110430.0,1.27167806]
[1756969269522,0.30756458,110440.0,110430.0,1.29167806]
[1756969269829,0.30468458,110440.0,110430.0,1.29167806]
[1756969270638,0.66836458,110440.0,110430.0,0.46259806]
[1756969270935,1.29542124,110440.0,110430.0,0.8945814]
[1756969271436,1.63542124,110440.0,110430.0,0.8945814]
[1756969271627,1.29542124,110440.0,110430.0,0.8945814]
[1756969271827,1.54542124,110440.0,110430.0,0.8945814]
[1756969272229,1.54542124,110440.0,110430.0,0.0655414]
[1756969272436,1.54542124,110440.0,110430.0,0.8945814]
[1756969273223,1.50542124,110440.0,110430.0,0.8945814]
[1756969273933,1.12836458,110440.0,110430.0,0.8945814]
[1756969274328,0.91836458,110440.0,110430.0,1.27163806]
[1756969274931,0.30468458,110440.0,110430.0,1.64869472]
[1756969275434,0.30468458,110440.0,110430.0,1.27163806]
[1756969275934,0.30468458,110440.0,110430.0,1.65163806]
[1756969276132,0.30468458,110440.0,110430.0,1.27163806]
[1756969276331,0.30468458,110440.0,110430.0,1.63243806]
[1756969276523,0.30468458,110440.0,110430.0,3.01360804]
[1756969276723,0.2794,110440.0,110430.0,3.35360804]
[1756969277637,0.2794,110440.0,110430.0,3.03360804]
[1756969277833,0.2794,110440.0,110430.0,3.01360804]
[1756969278036,0.2794,110440.0,110430.0,3.36360804]
[1756969278731,0.30468665,110440.0,110430.0,3.36360804]
[1756969278931,0.30468665,110440.0,110430.0,3.01360804]
[1756969279139,0.279,110440.0,110430.0,3.32360804]
[1756969280333,0.279,110440.0,110430.0,3.32260804]
[1756969280535,0.279,110440.0,110430.0,3.32360804]
[1756969282139,0.279,110440.0,110430.0,3.41413554]
[1756969282336,0.279,110440.0,110430.0,3.41313554]
[1756969282546,0.279,110440.0,110430.0,3.41413554]
[1756969283336,0.173161,110440.0,110430.0,3.41413554]
[1756969283643,0.3608,110480.0,110440.0,0.1050893]
[1756969283939,0.90895793,110480.0,110470.0,0.41566666]
[1756969284333,0.90895793,110480.0,110470.0,0.03861]
[1756969284539,1.28601459,110480.0,110470.0,0.72529]
[1756969286145,1.29201459,110480.0,110470.0,0.72529]
[1756969286938,0.91495793,110480.0,110470.0,0.72529]
[1756969287142,0.91495793,110480.0,110470.0,1.10234666]
[1756969287641,0.91295793,110480.0,110470.0,1.10234666]
[1756969288232,0.91295793,110480.0,110470.0,0.72529]
[1756969288442,0.91295793,110480.0,110470.0,0.03861]
[1756969288635,1.28901459,110480.0,110470.0,0.86793]
[1756969288935,0.91195793,110480.0,110470.0,0.86793]
[1756969289140,0.91095793,110480.0,110470.0,0.86793]
[1756969289836,0.90995793,110480.0,110470.0,0.86793]
[1756969290037,0.91195793,110480.0,110470.0,0.86785]
[1756969293047,0.91195793,110480.0,110470.0,0.86933]
[1756969293848,0.91195793,110480.0,110470.0,0.03861]
[1756969294042,0.91195793,110480.0,110470.0,0.86921]
[1756969294347,1.28836803,110480.0,110470.0,0.86921]
[1756969294748,1.28836803,110480.0,110470.0,0.86905]
[1756969295448,1.28836803,110480.0,110470.0,0.03861]
[1756969295649,1.28836803,110480.0,110470.0,0.86901]
[1756969296647,0.91159793,110480.0,110470.0,0.86901]
[1756969296847,1.28836803,110480.0,110470.0,0.86901]
[1756969297147,0.91159793,110480.0,110470.0,0.86901]
[1756969298149,0.91159793,110480.0,110470.0,1.2457801]
[1756969298454,0.91159793,110480.0,110470.0,1.8357801]
[1756969298455,0.90871793,110480.0,110470.0,1.8357801]
[1756969298653,0.54827793,110480.0,110470.0,1.8565801]
[1756969298846,0.54827793,110480.0,110470.0,2.1665801]
[1756969299037,0.523,110480.0,110470.0,2.2165801]
[1756969299241,0.523,110480.0,110470.0,2.3070753]
[1756969299945,0.521,110480.0,110470.0,2.3070753]
[1756969300846,0.52,110480.0,110470.0,2.3070753]
[1756969301750,0.52,110480.0,110470.0,2.3090753]
[1756969302251,0.41168,110480.0,110470.0,2.6868454]
[1756969302542,0.41168,110480.0,110470.0,2.3100753]
[1756969303150,0.31977034,110480.0,110470.0,3.4403856]
[1756969303342,0.47454034,110480.0,110470.0,3.4403856]
[1756969303755,0.47454034,110480.0,110470.0,1.1391801]
[1756969303957,0.47454034,110480.0,110470.0,1.9694201]
[1756969304648,0.47454034,110480.0,110470.0,2.0599154]
[1756969305752,0.47454034,110480.0,110470.0,1.2296754]
[1756969306051,0.47454034,110480.0,110470.0,2.0598354]
[1756969306954,0.47454034,110480.0,110470.0,1.2296754]
[1756969307354,0.47454034,110480.0,110470.0,2.0595154]
[1756969307756,0.47454034,110480.0,110470.0,1.2296754]
[1756969307948,0.47454034,110480.0,110470.0,2.0594354]
[1756969308448,0.47454034,110480.0,110470.0,2.0593554]
[1756969309057,0.47454034,110480.0,110470.0,2.0590754]
[1756969309258,0.47454034,110480.0,110470.0,2.3242754]
[1756969310346,0.47454034,110480.0,110470.0,2.7010455]
[1756969310552,0.2139,110480.0,110470.0,3.4545857]
[1756969311056,0.4839,110480.0,110470.0,3.4545857]
[1756969311253,0.4378,110480.0,110470.0,3.4545857]
[1756969311453,0.4378,110480.0,110470.0,3.7045857]
[1756969311454,0.33603,110480.0,110470.0,3.7045857]
[1756969311656,0.33603,110480.0,110470.0,3.4545857]
[1756969311953,0.61821,110480.0,110470.0,3.4545857]
[1756969312757,0.61821,110480.0,110470.0,3.4542257]
[1756969312957,0.61821,110480.0,110470.0,3.4540257]
[1756969314959,0.58790034,110480.0,110470.0,3.4540257]
[1756969317562,0.38120034,110480.0,110470.0,3.4540257]
[1756969317762,0.37110034,110480.0,110470.0,3.4540257]
[1756969317960,0.36622034,110480.0,110470.0,3.4540257]
[1756969318163,0.26227034,110480.0,110470.0,3.4540257]
[1756969318357,0.0001,110500.0,110480.0,0.0904834]
[1756969318557,0.43780787,110520.0,110510.0,0.03749]
[1756969318752,0.44780787,110520.0,110510.0,1.2429801]
[1756969318958,0.77780787,110520.0,110510.0,1.2429801]
[1756969319163,0.77780787,110520.0,110510.0,0.86621]
[1756969319461,0.77780787,110520.0,110510.0,1.31654412]
[1756969319963,1.10780787,110520.0,110510.0,1.31654412]
[1756969320159,1.11080787,110520.0,110510.0,0.48782412]
[1756969320360,1.11280787,110520.0,110510.0,0.07356402]
[1756969320555,1.73957797,110520.0,110500.0,0.0001]
[1756969320755,0.7407701,110510.0,110500.0,0.00910358]
[1756969320954,1.27925407,110510.0,110500.0,0.83800358]
[1756969321361,1.27925407,110510.0,110500.0,1.22954368]
[1756969321961,1.27925407,110510.0,110500.0,0.42326368]
[1756969322164,1.27925407,110510.0,110500.0,1.25242368]
[1756969322361,1.27925407,110510.0,110500.0,0.42326368]
[1756969322663,1.28025407,110510.0,110500.0,1.22986368]
[1756969323263,1.28025407,110510.0,110500.0,0.04649358]
[1756969323460,1.67768469,110510.0,110500.0,0.00900358]
[1756969323679,1.72623849,110510.0,110500.0,0.8294]
[1756969323859,1.74244378,110510.0,110490.0,0.92186902]
[1756969324067,0.41234519,110500.0,110490.0,1.38612912]
[1756969324259,1.35759926,110500.0,110490.0,1.38592912]
[1756969325565,1.35759926,110500.0,110490.0,1.01832033]
[1756969325766,1.35759926,110500.0,110490.0,1.39509043]
[1756969326868,0.99699926,110500.0,110490.0,1.39509043]
[1756969327063,1.73456936,110500.0,110490.0,0.99548033]
[1756969327270,1.73756936,110500.0,110490.0,0.99548033]
[1756969327471,1.73956936,110500.0,110490.0,0.99548033]
[1756969327657,1.73956936,110500.0,110490.0,1.01820033]
[1756969327858,1.36279926,110500.0,110490.0,1.39497043]
[1756969330676,1.36279926,110500.0,110490.0,1.01820033]
[1756969332278,1.36279926,110500.0,110490.0,0.9445289]
[1756969333180,1.73956936,110500.0,110490.0,0.9445289]
[1756969334278,1.31425407,110500.0,110490.0,0.9445289]
[1756969334479,1.69102417,110500.0,110490.0,0.9445289]
[1756969335381,1.69102417,110500.0,110490.0,0.85325131]
[1756969335576,1.73956936,110500.0,110490.0,0.85325131]
[1756969335775,1.48956936,110500.0,110490.0,0.02393131]
[1756969336073,1.48956936,110500.0,110490.0,0.85421131]
[1756969336576,1.48956936,110500.0,110490.0,0.87803131]
[1756969336968,1.48956936,110500.0,110490.0,0.02393131]
[1756969337271,1.85036936,110500.0,110490.0,0.02393131]
[1756969337475,1.47359926,110500.0,110490.0,0.04775131]
[1756969337673,1.85036936,110500.0,110490.0,0.04775131]
[1756969339183,1.85036936,110500.0,110490.0,0.04755131]
[1756969339384,2.10036936,110500.0,110480.0,0.84765]
[1756969339584,0.7410901,110490.0,110480.0,0.84765]
[1756969339886,1.44634417,110490.0,110480.0,0.88018375]
[1756969341172,1.06957407,110490.0,110480.0,0.88018375]
[1756969341372,1.06957407,110490.0,110480.0,1.25695385]
[1756969341781,1.07057407,110490.0,110480.0,1.25695385]
[1756969342285,1.07157407,110490.0,110480.0,1.25695385]
[1756969342890,1.07157407,110490.0,110480.0,0.88018375]
[1756969345481,1.44834417,110490.0,110480.0,0.88018375]
[1756969346078,1.44834417,110490.0,110480.0,0.04750375]
[1756969346278,1.44834417,110490.0,110480.0,0.88022375]
[1756969347184,1.44834417,110490.0,110480.0,0.04750375]